fUST/lending_fUST_20251021
["ID","MTS","AMOUNT","RATE_DAILY","PERIOD"]
[391973776,1761046240043,-330.0,0.000325,7]
[391973777,1761046240052,-165.0,0.000325,7]
[391973778,1761046240062,-166.0,0.000325,7]
[391973779,1761046240072,-330.0,0.000325,7]
[391973780,1761046240081,-167.1362042,0.000325,7]
[391973781,1761046240091,-166.0,0.000325,7]
[391973782,1761046240100,-330.0,0.000325,7]
[391973783,1761046240110,-330.0,0.000325,7]
[391973786,1761046240256,-330.0,0.000325,7]
[391973787,1761046240266,-330.0,0.000325,7]
[391973788,1761046240275,-330.0,0.000325,7]
[391973789,1761046240285,-267.89579574,0.000325,7]
[391973790,1761046240295,-166.0,0.000325,7]
[391973791,1761046240306,-166.0,0.000325,7]
[391973792,1761046240316,-500.0,0.000325,2]
[391973793,1761046240327,-286.09976556,0.000325,2]
[391973794,1761046240336,-500.0,0.000325,2]
[391973796,1761046240347,-1160.0,0.00032539,2]
[391973798,1761046240356,-500.0,0.00032555,2]
[391973799,1761046240370,-500.0,0.00032555,2]
[391973800,1761046240380,-501.68457325,0.00032567,5]
[391973801,1761046240389,-500.0,0.00032567,5]
[391973802,1761046240398,-500.0,0.00032567,5]
[391973803,1761046240408,-505.61126983,0.00032567,5]
[391973804,1761046240418,-500.0,0.00032567,5]
[391973805,1761046240427,-500.0,0.00032567,5]
[391973806,1761046240436,-208.0,0.00032606,7]
[391973807,1761046240446,-500.0,0.0003261,2]
[391973808,1761046240455,-500.0,0.0003261,2]
[391973809,1761046240464,-983.0,0.00032655,2]
[391973810,1761046240474,-632.0,0.00032655,2]
[391973811,1761046240483,-2164.0,0.00032655,2]
[391973812,1761046240492,-413.181,0.00032655,2]
[391973813,1761046240501,-428.678,0.00032655,2]
[391973814,1761046240510,-500.0,0.00032664,2]
[391973815,1761046240520,-393.57320629,0.00032664,2]
[391973816,1761046240529,-159.297955,0.00032705,3]
[391973817,1761046240539,-188.0,0.00032719,2]
[391973818,1761046240548,-3092.69,0.000328,7]
[391973819,1761046240557,-250.0,0.00032818,2]
[391973820,1761046240566,-1500.0,0.00032876,35]
[391973821,1761046240575,-1028.94,0.00032876,35]
[391973822,1761046240584,-2293.17887463,0.0003289,2]
[391973823,1761046240594,-666.28885699,0.000329,120]
[391973824,1761046240603,-605.18350725,0.000329,120]
[391973825,1761046240612,-1835.71287954,0.000329,120]
[391973826,1761046240621,-178.70547303,0.000329,120]
[391973827,1761046240630,-181.53397846,0.000329,120]
[391973828,1761046240640,-177.88438398,0.000329,120]
[391973829,1761046240649,-478.70470189,0.000329,120]
[391973830,1761046240659,-192.42173274,0.000329,120]
[391973831,1761046240668,-151.0,0.00032981,30]
[391973832,1761046240677,-161.571257,0.00032981,30]
[391973833,1761046240687,-151.0,0.00032981,30]
[391973834,1761046240696,-151.0,0.0003299,30]
[391973835,1761046240705,-213.375985,0.0003299,30]
[391973836,1761046240714,-213.375985,0.0003299,30]
[391973837,1761046240724,-213.375985,0.0003299,30]
[391973838,1761046240733,-213.375985,0.0003299,30]
[391973839,1761046240742,-151.0,0.0003299,30]
[391973840,1761046240752,-20000.02,0.00033,5]
[391973841,1761046240761,-6254.2815816,0.00033042,2]
[391973842,1761046240770,-254.14068666,0.00033079,2]
[391973843,1761046240780,-208.0,0.0003308,2]
[391973844,1761046240789,-208.0,0.00033083,2]
[391973845,1761046240798,-1260.0,0.00033087,2]
[391973846,1761046240807,-1000.0,0.00033115,5]
[391973847,1761046240817,-473.25744716,0.00033115,5]
[391973848,1761046240826,-1000.0,0.00033115,5]
[391973849,1761046240835,-409.84556529,0.00033149,2]
[391973850,1761046240844,-500.0,0.00033149,120]
[391973851,1761046240854,-636.05541,0.00033165,2]
[391973852,1761046240863,-1152.0,0.00033179,2]
[391973853,1761046240872,-208.0,0.00033182,2]
[391973854,1761046240882,-303.0,0.00033185,2]
[391973855,1761046240892,-159.297955,0.00033198,2]
[391973856,1761046240901,-461.2241229,0.00033199,2]
[391973857,1761046240911,-500.0,0.00033334,30]
[391973858,1761046240920,-4205.0,0.00033347,2]
[391973859,1761046240930,-1243.68337559,0.00033462,2]
[391973860,1761046240939,-151.0,0.00033473,30]
[391973861,1761046240949,-151.0,0.00033473,30]
[391973862,1761046240958,-250.0,0.000335,10]
[391973863,1761046240968,-150.0,0.000335,30]
[391973864,1761046240978,-2293.17887463,0.00033542,2]
[391973865,1761046240987,-533.96994106,0.00033551,120]
[391973866,1761046240997,-18345.430997,0.00033552,2]
[391973867,1761046241007,-903.96018776,0.00033552,2]
[391973868,1761046241016,-151.0,0.00033552,30]
[391973869,1761046241026,-154.834159,0.00033552,30]
[391973870,1761046241035,-153.62292,0.00033552,30]
[391973871,1761046241045,-151.0,0.00033552,30]
[391973872,1761046241055,-151.0,0.00033552,30]
[391973873,1761046241065,-213.375985,0.00033552,30]
[391973874,1761046241074,-213.375985,0.00033552,30]
[391973875,1761046241084,-213.375985,0.00033552,30]
[391973876,1761046241094,-213.375985,0.00033552,30]
[391973877,1761046241103,-2999.0,0.00033561,120]
[391973878,1761046241112,-370000.0,0.00033562,2]
[391973879,1761046241122,-151.0,0.00033562,30]
[391973880,1761046241131,-151.0,0.00033562,30]
[391973881,1761046241141,-151.0,0.00033562,30]
[391973882,1761046241151,-151.0,0.00033562,30]
[391973883,1761046241161,-213.375985,0.00033562,30]
[391973884,1761046241170,-213.375985,0.00033562,30]
[391973885,1761046241180,-213.375985,0.00033562,30]
[391973886,1761046241189,-213.375985,0.00033562,30]
[391973887,1761046241198,-500.0,0.00033573,5]
[391973888,1761046241208,-250.0,0.000336,10]
[391973889,1761046241217,-500.0,0.00033608,30]
[391973890,1761046241227,-1360.0,0.00033635,2]
[391973891,1761046241236,-501.53946441,0.00033646,12]
[391973892,1761046241246,-500.0,0.00033646,12]
[391973893,1761046241255,-500.0,0.00033651,120]
[391973894,1761046241264,-720.0,0.00033659,30]
[391973895,1761046241274,-500.0,0.00033661,120]
[391973896,1761046241283,-500.0,0.00033661,120]
[391973897,1761046241293,-500.0,0.00033661,120]
[391973898,1761046241302,-500.0,0.00033661,120]
[391973899,1761046241311,-500.0,0.00033661,120]
[391973900,1761046241320,-500.0,0.00033661,120]
[391973901,1761046241329,-500.0,0.00033661,120]
[391973902,1761046241339,-500.0,0.00033661,120]
[391973903,1761046241348,-500.0,0.00033661,120]
[391973904,1761046241358,-500.0,0.00033661,120]
[391973905,1761046241370,-500.0,0.00033661,120]
[391973906,1761046241379,-574.82544331,0.00033661,120]
[391973907,1761046241389,-1500.0,0.00033663,5]
[391973908,1761046241398,-1500.0,0.00033663,5]
[391973909,1761046241407,-659.88,0.000337,14]
[391973910,1761046241416,-250.0,0.000337,10]
[391973911,1761046241426,-208.0,0.00033726,2]
[391973912,1761046241435,-155.346384,0.00033762,30]
[391973913,1761046241444,-154.286573,0.00033762,30]
[391973914,1761046241453,-151.0,0.00033762,30]
[391973915,1761046241463,-151.0,0.00033762,30]
[391973916,1761046241473,-280.178679,0.00033762,30]
[391973917,1761046241482,-250.0,0.000338,10]
[391973918,1761046241491,-151.0,0.00033822,30]
[391973919,1761046241501,-213.375985,0.00033822,30]
[391973920,1761046241510,-213.375985,0.00033822,30]
[391973921,1761046241519,-213.375985,0.00033822,30]
[391973922,1761046241529,-213.375989,0.00033822,30]
[391973923,1761046241539,-833.29,0.00033822,120]
[391973924,1761046241548,-833.29,0.00033822,120]
[391973925,1761046241558,-833.29,0.00033822,120]
[391973926,1761046241568,-833.29,0.00033822,120]
[391973927,1761046241577,-833.29,0.00033822,120]
[391973928,1761046241585,-833.29,0.00033822,120]
[391973929,1761046241597,-833.29,0.00033822,120]
[391973930,1761046241606,-833.29,0.00033822,120]
[391973931,1761046241615,-833.29,0.00033822,120]
[391973932,1761046241626,-833.29,0.00033822,120]
[391973933,1761046241635,-833.29,0.00033822,120]
[391973934,1761046241645,-833.29,0.00033822,120]
[391973935,1761046241654,-833.29,0.00033822,120]
[391973936,1761046241663,-833.29,0.00033822,120]
[391973937,1761046241672,-833.29,0.00033822,120]
[391973938,1761046241681,-833.29,0.00033822,120]
[391973939,1761046241691,-833.29,0.00033822,120]
[391973940,1761046241700,-833.29,0.00033822,120]
[391973941,1761046241710,-833.29,0.00033822,120]
[391973942,1761046241719,-833.29,0.00033822,120]
[391973943,1761046241728,-833.29,0.00033822,120]
[391973944,1761046241737,-833.29,0.00033822,120]
[391973945,1761046241746,-833.29,0.00033822,120]
[391973946,1761046241756,-833.33,0.00033822,120]
[391973947,1761046241765,-500.0,0.00033822,2]
[391973948,1761046241774,-500.0,0.00033822,2]
[391973949,1761046241783,-500.0,0.00033822,2]
[391973950,1761046241792,-588.05861221,0.00033822,2]
[391973951,1761046241802,-500.0,0.00033822,120]
[391973952,1761046241814,-500.0,0.00033822,120]
[391973953,1761046241823,-500.0,0.00033822,120]
[391973954,1761046241835,-500.0,0.00033822,120]
[391973955,1761046241845,-500.0,0.00033822,120]
[391973956,1761046241855,-500.0,0.00033822,120]
[391973957,1761046241864,-500.0,0.00033822,120]
[391973958,1761046241873,-500.0,0.00033822,120]
[391973959,1761046241883,-500.0,0.00033822,120]
[391973960,1761046241892,-500.0,0.00033822,120]
[391973961,1761046241901,-500.0,0.00033822,120]
[391973962,1761046241911,-500.0,0.00033822,120]
[391973963,1761046241920,-500.0,0.00033822,120]
[391973964,1761046241929,-499.80010004,0.00033822,120]
[391973965,1761046241938,-625.66768845,0.00033822,60]
[391973966,1761046241948,-9627.96292176,0.00033822,120]
[391973967,1761046241956,-500.0,0.00033822,120]
[391973968,1761046241966,-500.0,0.00033822,120]
[391973969,1761046241975,-273.35,0.00033822,120]
[391973970,1761046241984,-625.0,0.00033822,120]
[391973971,1761046241993,-625.0,0.00033822,120]
[391973972,1761046242003,-625.0,0.00033822,120]
[391973973,1761046242012,-625.0,0.00033822,120]
[391973974,1761046242021,-625.0,0.00033822,120]
[391973975,1761046242031,-625.0,0.00033822,120]
[391973976,1761046242040,-625.0,0.00033822,120]
[391973977,1761046242050,-625.0,0.00033822,120]
[391973978,1761046242059,-625.0,0.00033822,120]
[391973979,1761046242068,-625.0,0.00033822,120]
[391973980,1761046242077,-625.0,0.00033822,120]
[391973981,1761046242087,-625.0,0.00033822,120]
[391973982,1761046242096,-625.0,0.00033822,120]
[391973983,1761046242105,-625.0,0.00033822,120]
[391973984,1761046242115,-625.0,0.00033822,120]
[391973985,1761046242124,-625.0,0.00033822,120]
[391973986,1761046242134,-625.0,0.00033822,120]
[391973987,1761046242144,-625.0,0.00033822,120]
[391973988,1761046242153,-625.0,0.00033822,120]
[391973989,1761046242162,-625.0,0.00033822,120]
[391973990,1761046242171,-625.0,0.00033822,120]
[391973991,1761046242180,-625.0,0.00033822,120]
[391973992,1761046242190,-625.0,0.00033822,120]
[391973993,1761046242199,-625.00000003,0.00033822,120]
[391973994,1761046242210,-2019.72,0.00033822,120]
[391973995,1761046242221,-2019.72,0.00033822,120]
[391973996,1761046242231,-2019.72,0.00033822,120]
[391973997,1761046242240,-2019.72,0.00033822,120]
[391973998,1761046242249,-2019.72,0.00033822,120]
[391973999,1761046242259,-2019.72,0.00033822,120]
[391974000,1761046242268,-2019.72,0.00033822,120]
[391974001,1761046242278,-2019.72,0.00033822,120]
[391974002,1761046242287,-2019.72,0.00033822,120]
[391974003,1761046242297,-2019.72,0.00033822,120]
[391974004,1761046242307,-2019.72,0.00033822,120]
[391974005,1761046242318,-2019.72,0.00033822,120]
[391974006,1761046242328,-2019.72,0.00033822,120]
[391974007,1761046242337,-2019.72,0.00033822,120]
[391974008,1761046242347,-2019.72,0.00033822,120]
[391974009,1761046242357,-2019.72,0.00033822,120]
[391974010,1761046242371,-2019.72,0.00033822,120]
[391974011,1761046242380,-2019.72,0.00033822,120]
[391974012,1761046242390,-2019.72,0.00033822,120]
[391974013,1761046242399,-2019.72,0.00033822,120]
[391974014,1761046242409,-2019.72,0.00033822,120]
[391974015,1761046242419,-2019.72,0.00033822,120]
[391974016,1761046242428,-2019.72,0.00033822,120]
[391974017,1761046242439,-2019.9077037,0.00033822,120]
[391974018,1761046242450,-200.04428301,0.00033822,120]
[391974019,1761046242459,-201.0,0.00033822,120]
[391974020,1761046242470,-220.00138825,0.00033822,120]
[391974021,1761046242479,-500.0,0.00033822,120]
[391974022,1761046242489,-500.0,0.00033822,120]
[391974023,1761046242499,-500.0,0.00033822,120]
[391974024,1761046242508,-500.0,0.00033822,120]
[391974025,1761046242517,-150.0,0.00033822,2]
[391974026,1761046242527,-178.48890736,0.00033822,60]
[391974027,1761046242536,-899.69928088,0.00033822,120]
[391974028,1761046242547,-3724.0,0.00033822,2]
[391974029,1761046242579,-500.0,0.00033822,120]
[391974030,1761046242587,-500.0,0.00033822,120]
[391974031,1761046242596,-500.0,0.00033822,120]
[391974032,1761046242606,-500.0,0.00033822,120]
[391974033,1761046242616,-500.0,0.00033822,120]
[391974034,1761046242626,-500.0,0.00033822,120]
[391974035,1761046242636,-500.0,0.00033822,120]
[391974036,1761046242645,-500.0,0.00033822,120]
[391974037,1761046242655,-500.0,0.00033822,120]
[391974038,1761046242664,-500.0,0.00033822,120]
[391974039,1761046242674,-500.0,0.00033822,120]
[391974040,1761046242683,-500.0,0.00033822,120]
[391974041,1761046242692,-500.0,0.00033822,120]
[391974042,1761046242702,-500.0,0.00033822,120]
[391974043,1761046242711,-500.0,0.00033822,120]
[391974044,1761046242720,-500.0,0.00033822,120]
[391974045,1761046242729,-500.0,0.00033822,120]
[391974046,1761046242739,-500.0,0.00033822,120]
[391974047,1761046242749,-500.0,0.00033822,120]
[391974048,1761046242759,-500.0,0.00033822,120]
[391974049,1761046242768,-278.07821197,0.00033822,120]
[391974050,1761046242778,-250.0,0.00033822,10]
[391974051,1761046242787,-250.0,0.00033822,10]
[391974052,1761046242797,-250.0,0.00033822,10]
[391974053,1761046242806,-250.0,0.00033822,10]
[391974054,1761046242815,-250.501735,0.00033822,10]
[391974055,1761046242824,-200.0,0.00033822,120]
[391974056,1761046242833,-500.0,0.00033822,120]
[391974057,1761046242842,-500.0,0.00033822,120]
[391974058,1761046242853,-500.0,0.00033822,120]
[391974059,1761046242863,-500.0,0.00033822,120]
[391974060,1761046242872,-500.0,0.00033822,120]
[391974061,1761046242881,-500.0,0.00033822,120]
[391974062,1761046242890,-500.0,0.00033822,120]
[391974063,1761046242900,-421.931749,0.00033822,120]
[391974064,1761046242909,-208.0,0.00033865,2]
[391974065,1761046242919,-554.32750385,0.00033868,2]
[391974066,1761046242927,-1395.5188509,0.00033871,2]
[391974067,1761046242937,-500.0,0.00033882,30]
[391974068,1761046242947,-666.28885699,0.000339,120]
[391974069,1761046242956,-605.18350725,0.000339,120]
[391974070,1761046242966,-1835.71287954,0.000339,120]
[391974071,1761046242975,-181.53397846,0.000339,120]
[391974072,1761046242985,-250.0,0.000339,10]
[391974073,1761046242995,-177.88438398,0.000339,120]
[391974074,1761046243004,-478.70470189,0.000339,120]
[391974075,1761046243013,-5057.91863688,0.0003398,2]
[391974076,1761046243023,-331.149845,0.00034,10]
[391974078,1761046243035,-159.297955,0.0003405,10]
[391974079,1761046243044,-159.297955,0.00034058,3]
[391974080,1761046243053,-155.344039,0.00034058,3]
[391974081,1761046243062,-210.0,0.00034145,2]
[391974082,1761046243072,-500.0,0.00034156,30]
[391974083,1761046243080,-1460.0,0.00034183,2]
[391974084,1761046243089,-208.0,0.00034202,120]
[391974085,1761046243098,-397.21,0.00034204,2]
[391974086,1761046243107,-2000.0,0.00034211,5]
[391974087,1761046243115,-2144.2197382,0.00034211,5]
[391974088,1761046243124,-2134.53,0.00034246,120]
[391974089,1761046243133,-168.0,0.00034384,2]
[391974090,1761046243141,-6203.55,0.000344,14]
[391974091,1761046243150,-500.0,0.0003443,30]
[391974092,1761046243159,-1243.68337556,0.0003444,2]
[391974093,1761046243167,-500.0,0.00034704,30]
[391974094,1761046243176,-159.297955,0.00034725,10]
[391974095,1761046243184,-155.344039,0.00034725,10]
[391974096,1761046243193,-1560.0,0.00034731,2]
[391974097,1761046243203,-2500.0,0.00034758,5]
[391974098,1761046243212,-739.223229,0.000348,2]
[391974099,1761046243222,-3092.69,0.000348,7]
[391974100,1761046243231,-501.0,0.00034822,120]
[391974101,1761046243240,-2293.17887463,0.0003489,2]
[391974102,1761046243249,-666.28885699,0.000349,120]
[391974103,1761046243259,-605.18350725,0.000349,120]
[391974104,1761046243268,-1835.71287954,0.000349,120]
[391974106,1761046243277,-181.53397846,0.000349,120]
[391974107,1761046243286,-478.70470189,0.000349,120]
[391974108,1761046243296,-500.0,0.00034978,30]
[391974110,1761046243305,-1000.0,0.00035,2]
[391974112,1761046243314,-576.91,0.00035252,30]
[391974113,1761046243323,-1000.0,0.00035279,2]
[391974115,1761046243332,-1000.0,0.000353,2]
[391974116,1761046243342,-2160.68619614,0.00035306,5]
[391974117,1761046243351,-158.182511,0.000354,10]
[391974118,1761046243360,-159.297955,0.000354,10]
[391974119,1761046243373,-155.344039,0.000354,10]
[391974120,1761046243383,-159.297955,0.00035411,3]
[391974121,1761046243391,-155.344039,0.00035411,3]
[391974122,1761046243400,-6871.1745271,0.00035418,2]
[391974123,1761046243409,-1243.68337556,0.00035418,2]
[391974125,1761046243418,-173.097524,0.0003553,2]
[391974126,1761046243427,-173.097525,0.0003553,2]
[391974127,1761046243436,-346.195048,0.0003553,2]
[391974128,1761046243446,-1000.0,0.00035562,60]
[391974129,1761046243455,-575.67,0.000356,2]
[391974131,1761046243464,-319.8343185,0.00035616,2]
[391974132,1761046243474,-983.0,0.00035655,2]
[391974134,1761046243484,-632.0,0.00035655,2]
[391974135,1761046243493,-2164.0,0.00035655,2]
[391974136,1761046243502,-411.0,0.00035655,2]
[391974137,1761046243511,-411.0,0.00035655,2]
[391974139,1761046243521,-659.88,0.000357,14]
[391974140,1761046243530,-5000.0,0.00035764,4]
[391974141,1761046243539,-502.0,0.00035822,120]
[391974142,1761046243548,-208.0,0.00035858,2]
[391974143,1761046243557,-208.0,0.00035904,2]
[391974144,1761046243566,-601.28433051,0.00035946,2]
[391974145,1761046243575,-2293.17887463,0.00035954,3]
[391974146,1761046243584,-1613.0,0.00035981,2]
[391974147,1761046243594,-300.0,0.00036,120]
[391974148,1761046243604,-198.0,0.00036,120]
[391974149,1761046243614,-284.2455778,0.00036,120]
[391974150,1761046243624,-1000.0,0.00036063,4]
[391974151,1761046243633,-1107.277577,0.00036099,2]
[391974152,1761046243642,-159.297955,0.00036099,2]
[391974153,1761046243651,-155.344039,0.00036099,2]
[391974154,1761046243661,-170.23,0.00036171,30]
[391974155,1761046243670,-168.63598432,0.00036258,30]
[391974156,1761046243679,-554.32750385,0.0003636,2]
[391974157,1761046243689,-1243.68337556,0.00036395,2]
[391974158,1761046243698,-151.0,0.000365,10]
[391974159,1761046243707,-159.297955,0.00036623,20]
[391974160,1761046243717,-155.344039,0.00036623,20]
[391974161,1761046243726,-151.0,0.000367,12]
[391974162,1761046243735,-548.34490865,0.000368,90]
[391974163,1761046243744,-503.0,0.00036822,120]
[391974164,1761046243754,-151.0,0.00037,16]
[391974165,1761046243763,-864.0,0.00037025,30]
[391974166,1761046243772,-151.0,0.000371,10]
[391974167,1761046243782,-794.41,0.00037313,2]
[391974168,1761046243791,-6871.1745271,0.00037373,2]
[391974169,1761046243801,-1243.68337556,0.00037373,2]
[391974170,1761046243810,-5263.22158803,0.00037373,2]
[391974171,1761046243822,-990.0,0.000374,2]
[391974172,1761046243832,-990.0,0.000374,3]
[391974173,1761046243841,-3005.59802468,0.000374,5]
[391974174,1761046243852,-333.48711709,0.000374,2]
[391974175,1761046243862,-1000.0,0.00037416,30]
[391974176,1761046243872,-2293.17887463,0.00037424,3]
[391974177,1761046243882,-13759.0732478,0.00037434,3]
[391974179,1761046243891,-677.97014082,0.00037434,3]
[391974181,1761046243901,-200.73278272,0.00037443,10]
[391974183,1761046243911,-162.58942812,0.00037443,10]
[391974185,1761046243921,-1606606.39951037,0.00037444,7]
[391974186,1761046243939,-27566.51111406,0.00037444,7]
[391974187,1761046244079,-3e-08,0.0002399,10]
[391974205,1761046247769,-5000.0,0.0002375,2]
[391974206,1761046247803,-0.01,0.0002399,10]
[391974207,1761046247914,-1559.96999997,0.0002399,10]
[391974208,1761046247942,-300.0,0.00024,2]
[391974209,1761046255453,300.0,0.00024,2]
[391974210,1761046266452,300.0,0.00024,2]
[391974211,1761046278300,300.0,0.00024,2]
[391974212,1761046289422,300.0,0.00024,2]
[391974213,1761046291149,300.0,0.00024,2]
[391974214,1761046296219,500.0,0.00023973,2]
[391974215,1761046327313,196.0,0.00016,2]
[391974216,1761046327509,196.0,0.00016021,2]
[391974217,1761046327699,196.0,0.00016042,2]
[391974218,1761046327973,196.0,0.00016064,2]
[391974219,1761046328177,196.0,0.00016085,2]
[391974220,1761046328390,196.0,0.00016106,2]
[391974221,1761046328600,196.0,0.00016127,2]
[391974222,1761046328806,196.0,0.00016148,2]
[391974223,1761046329042,196.0,0.0001617,2]
[391974224,1761046329247,196.0,0.00016191,2]
[391974225,1761046329453,196.0,0.00016212,2]
[391974226,1761046329644,196.0,0.00016233,2]
[391974227,1761046329861,196.0,0.00016255,2]
[391974228,1761046330068,196.0,0.00016276,2]
[391974229,1761046330268,196.0,0.00016297,2]
[391974230,1761046330484,196.0,0.00016318,2]
[391974231,1761046330683,196.0,0.00016339,2]
[391974232,1761046330879,196.0,0.00016361,2]
[391974233,1761046331071,196.0,0.00016382,2]
[391974234,1761046331261,196.0,0.00016403,2]
[391974235,1761046331454,196.0,0.00016424,2]
[391974236,1761046331941,164.07000006,0.00016445,2]
[391974237,1761046331964,31.92999994,0.00016445,2]
[391974238,1761046332153,196.0,0.00016467,2]
[391974239,1761046332355,196.0,0.00016488,2]
[391974240,1761046332557,196.0,0.00016509,2]
[391974241,1761046332768,196.0,0.0001653,2]
[391974242,1761046332996,196.0,0.00016552,2]
[391974243,1761046333193,196.0,0.00016573,2]
[391974244,1761046333396,196.0,0.00016594,2]
[391974245,1761046333596,196.0,0.00016615,2]
[391974246,1761046333778,196.0,0.00016636,2]
[391974247,1761046334000,196.0,0.00016658,2]
[391974248,1761046334181,196.0,0.00016679,2]
[391974249,1761046334383,196.0,0.000167,2]
[391974250,1761046334570,196.0,0.00016721,2]
[391974251,1761046334790,196.0,0.00016742,2]
[391974252,1761046335011,196.0,0.00016764,2]
[391974253,1761046335198,196.0,0.00016785,2]
[391974254,1761046335389,196.0,0.00016806,2]
[391974255,1761046335574,196.0,0.00016827,2]
[391974256,1761046335771,196.0,0.00016848,2]
[391974257,1761046335966,196.0,0.0001687,2]
[391974258,1761046336177,196.0,0.00016891,2]
[391974259,1761046336383,196.0,0.00016912,2]
[391974260,1761046336615,196.0,0.00016933,2]
[391974261,1761046336959,196.0,0.00016955,2]
[391974262,1761046337309,196.0,0.00016976,2]
[391974263,1761046337511,196.0,0.00016997,2]
[391974264,1761046337732,196.0,0.00017018,2]
[391974265,1761046337930,196.0,0.00017039,2]
[391974266,1761046338139,196.0,0.00017061,2]
[391974267,1761046338358,196.0,0.00017082,2]
[391974268,1761046338551,196.0,0.00017103,2]
[391974269,1761046338755,196.0,0.00017124,2]
[391974270,1761046338989,196.0,0.00017145,2]
[391974271,1761046339184,196.0,0.00017167,2]
[391974272,1761046339439,196.0,0.00017188,2]
[391974273,1761046339640,196.0,0.00017209,2]
[391974274,1761046339841,196.0,0.0001723,2]
[391974275,1761046340066,196.0,0.00017252,2]
[391974276,1761046340267,196.0,0.00017273,2]
[391974277,1761046340461,196.0,0.00017294,2]
[391974278,1761046340673,196.0,0.00017315,2]
[391974279,1761046340917,196.0,0.00017336,2]
[391974280,1761046341116,196.0,0.00017358,2]
[391974281,1761046341344,196.0,0.00017379,2]
[391974282,1761046341541,196.0,0.000174,2]
[391974283,1761046341762,196.0,0.00017421,2]
[391974284,1761046341957,196.0,0.00017442,2]
[391974285,1761046342151,196.0,0.00017464,2]
[391974286,1761046342354,196.0,0.00017485,2]
[391974287,1761046342548,196.0,0.00017506,2]
[391974288,1761046342744,168.08000006,0.00017527,2]
[391974289,1761046342766,27.91999994,0.00017527,2]
[391974290,1761046342939,196.0,0.00017548,2]
[391974291,1761046343137,196.0,0.0001757,2]
[391974292,1761046343334,196.0,0.00017591,2]
[391974293,1761046343529,196.0,0.00017612,2]
[391974294,1761046343734,196.0,0.00017633,2]
[391974295,1761046343928,196.0,0.00017655,2]
[391974296,1761046344177,196.0,0.00017676,2]
[391974297,1761046344344,196.0,0.00017697,2]
[391974298,1761046344546,196.0,0.00017718,2]
[391974299,1761046344736,196.0,0.00017739,2]
[391974300,1761046344943,196.0,0.00017761,2]
[391974301,1761046345330,196.0,0.00017782,2]
[391974302,1761046345525,196.0,0.00017803,2]
[391974303,1761046345717,196.0,0.00017824,2]
[391974304,1761046345916,196.0,0.00017845,2]
[391974305,1761046346140,196.0,0.00017867,2]
[391974306,1761046346904,196.0,0.00017888,2]
[391974307,1761046347137,196.0,0.00017909,2]
[391974308,1761046347324,196.0,0.0001793,2]
[391974309,1761046347520,196.0,0.00017952,2]